[Event "Early-Titled-Tuesday-Blitz-September-12-2023"]
[Site "Chess.com"]
[Date "2023.09.12"]
[Round "4"]
[White "Kacparov"]
[Black "MatyChess1"]
[Result "0-1"]
[WhiteElo "2904"]
[BlackElo "2701"]
[TimeControl "180+1"]
[EndTime "8:40:24 PDT"]
[Termination "MatyChess1 won by resignation"]

1. e4 {[%clk 0:03:00.9]} 1... c6 {[%clk 0:02:58.4]} 2. d4 {[%clk 0:03:01]} 2...
d5 {[%clk 0:02:59.3]} 3. Nc3 {[%clk 0:03:01.6]} 3... dxe4 {[%clk 0:02:59.4]} 4.
Nxe4 {[%clk 0:03:02.5]} 4... Nf6 {[%clk 0:03:00.1]} 5. Nxf6+ {[%clk 0:03:01.9]}
5... exf6 {[%clk 0:03:01]} 6. c3 {[%clk 0:03:02.3]} 6... Bd6 {[%clk 0:03:01.4]}
7. Bd3 {[%clk 0:03:03]} 7... O-O {[%clk 0:03:02]} 8. Ne2 {[%clk 0:03:03.5]} 8...
Re8 {[%clk 0:03:02.2]} 9. Qc2 {[%clk 0:03:04.2]} 9... h5 {[%clk 0:03:02.4]} 10.
Bd2 {[%clk 0:03:04.4]} 10... Nd7 {[%clk 0:03:01]} 11. O-O-O {[%clk 0:03:04.3]}
11... Nf8 {[%clk 0:03:01.7]} 12. Ng3 {[%clk 0:03:04.3]} 12... g6 {[%clk
0:02:54]} 13. Rhe1 {[%clk 0:03:01.9]} 13... Bg4 {[%clk 0:02:18]} 14. f3 {[%clk
0:03:01.2]} 14... Be6 {[%clk 0:02:15.4]} 15. Kb1 {[%clk 0:03:00.1]} 15... b5
{[%clk 0:02:13.6]} 16. Ne4 {[%clk 0:02:59.6]} 16... Be7 {[%clk 0:02:13.3]} 17.
h3 {[%clk 0:02:29.5]} 17... h4 {[%clk 0:02:05.8]} 18. Be3 {[%clk 0:02:25.7]}
18... a5 {[%clk 0:01:46]} 19. Nc5 {[%clk 0:02:23.5]} 19... Bd5 {[%clk
0:01:35.8]} 20. Bf2 {[%clk 0:02:17.1]} 20... f5 {[%clk 0:01:30.9]} 21. Re2
{[%clk 0:02:11.5]} 21... Bf6 {[%clk 0:01:23.9]} 22. Rxe8 {[%clk 0:02:08.9]}
22... Qxe8 {[%clk 0:01:22.5]} 23. Re1 {[%clk 0:02:08.8]} 23... Qd8 {[%clk
0:01:20.5]} 24. Qd2 {[%clk 0:02:00.4]} 24... a4 {[%clk 0:01:08.4]} 25. a3 {[%clk
0:01:53.8]} 25... Ne6 {[%clk 0:01:01.6]} 26. Nxe6 {[%clk 0:01:52]} 26... Bxe6
{[%clk 0:01:02.5]} 27. Be3 {[%clk 0:01:39]} 27... Qd5 {[%clk 0:00:48.1]} 28. Kc1
{[%clk 0:01:39]} 28... Qd8 {[%clk 0:00:37.4]} 29. Bf4 {[%clk 0:01:37.8]} 29...
Ra7 {[%clk 0:00:35.5]} 30. Be5 {[%clk 0:01:36.5]} 30... Bg5 {[%clk 0:00:35.4]}
31. Bf4 {[%clk 0:01:35.7]} 31... Bf6 {[%clk 0:00:35.9]} 32. g4 {[%clk
0:01:25.4]} 32... hxg3 {[%clk 0:00:35.1]} 33. Bxg3 {[%clk 0:01:25.6]} 33... Bd5
{[%clk 0:00:31.4]} 34. Qf2 {[%clk 0:01:20.4]} 34... Re7 {[%clk 0:00:29.4]} 35.
Rxe7 {[%clk 0:01:00.5]} 35... Qxe7 {[%clk 0:00:29.5]} 36. h4 {[%clk 0:01:00.4]}
36... f4 {[%clk 0:00:26.8]} 37. Bxf4 {[%clk 0:01:00.2]} 37... Bxh4 {[%clk
0:00:27.5]} 38. Qe2 {[%clk 0:00:58.2]} 38... Qxe2 {[%clk 0:00:18.9]} 39. Bxe2
{[%clk 0:00:59.1]} 39... f6 {[%clk 0:00:16.7]} 40. Kd2 {[%clk 0:00:58.5]} 40...
Kf7 {[%clk 0:00:17.3]} 41. Ke3 {[%clk 0:00:58.6]} 41... Ke6 {[%clk 0:00:14.4]}
42. Bd3 {[%clk 0:00:58.3]} 42... g5 {[%clk 0:00:14.4]} 43. Bc7 {[%clk
0:00:57.3]} 43... f5 {[%clk 0:00:13.8]} 44. Be2 {[%clk 0:00:50.8]} 44... Be1
{[%clk 0:00:11.7]} 45. Bd3 {[%clk 0:00:45.8]} 45... Bh4 {[%clk 0:00:08.4]} 46.
Bd8 {[%clk 0:00:35.1]} 46... Kd7 {[%clk 0:00:03.4]} 47. Bf6 {[%clk 0:00:31.8]}
47... Ke6 {[%clk 0:00:04]} 48. Be5 {[%clk 0:00:31.6]} 48... Be1 {[%clk
0:00:03.4]} 49. Ke2 {[%clk 0:00:31.7]} 49... Bh4 {[%clk 0:00:03.7]} 50. Bc7
{[%clk 0:00:31.7]} 50... g4 {[%clk 0:00:03.8]} 51. fxg4 {[%clk 0:00:26.3]} 51...
fxg4 {[%clk 0:00:04.7]} 52. Kf1 {[%clk 0:00:22.6]} 52... Bg5 {[%clk 0:00:04.7]}
53. Ba5 {[%clk 0:00:17.2]} 53... Bc1 {[%clk 0:00:03.8]} 54. Bb4 {[%clk
0:00:17.6]} 54... Bxb2 {[%clk 0:00:04.2]} 55. Kf2 {[%clk 0:00:18.1]} 55... Bc1
{[%clk 0:00:03.9]} 56. Kg3 {[%clk 0:00:18.4]} 56... Bf3 {[%clk 0:00:04.6]} 57.
Bg6 {[%clk 0:00:18.3]} 57... Bd2 {[%clk 0:00:04.9]} 58. Kf2 {[%clk 0:00:16.8]}
58... Bf4 {[%clk 0:00:04.1]} 59. Be8 {[%clk 0:00:16.4]} 59... Bd6 {[%clk
0:00:04.1]} 60. Bxd6 {[%clk 0:00:14.9]} 60... Kxd6 {[%clk 0:00:05]} 61. Bf7
{[%clk 0:00:15.1]} 61... c5 {[%clk 0:00:05.2]} 62. dxc5+ {[%clk 0:00:14.9]}
62... Kxc5 {[%clk 0:00:06.1]} 63. Ke3 {[%clk 0:00:15.1]} 63... Bd5 {[%clk
0:00:06]} 64. Be8 {[%clk 0:00:14.3]} 64... Kc4 {[%clk 0:00:06.4]} 65. Kf4 {[%clk
0:00:12.4]} 65... Be6 {[%clk 0:00:06.6]} 66. Bc6 {[%clk 0:00:12]} 66... Bc8
{[%clk 0:00:06.8]} 67. Kg3 {[%clk 0:00:11.9]} 67... Kxc3 {[%clk 0:00:07.3]} 68.
Bxb5 {[%clk 0:00:12]} 68... Kb3 {[%clk 0:00:08.2]} 69. Kf2 {[%clk 0:00:10]}
69... Kxa3 {[%clk 0:00:08.7]} 70. Ke3 {[%clk 0:00:10.6]} 70... Kb4 {[%clk
0:00:09.4]} 71. Bc6 {[%clk 0:00:10.6]} 71... a3 {[%clk 0:00:09.8]} 72. Bd5
{[%clk 0:00:10.8]} 72... Bd7 {[%clk 0:00:09.7]} 73. Kd2 {[%clk 0:00:11.2]} 73...
Bb5 {[%clk 0:00:09.7]} 74. Kc2 {[%clk 0:00:11.6]} 74... Bc4 {[%clk 0:00:09.7]}
75. Be4 {[%clk 0:00:11.9]} 75... Kc5 {[%clk 0:00:10.1]} 76. Kc3 {[%clk
0:00:12.2]} 76... g3 {[%clk 0:00:10.4]} 77. Bg2 {[%clk 0:00:12.3]} 77... a2
{[%clk 0:00:11.1]} 78. Kb2 {[%clk 0:00:12.3]} 78... Kd4 {[%clk 0:00:11.9]} 79.
Bh3 {[%clk 0:00:12.4]} 79... Ke3 {[%clk 0:00:12.4]} 80. Bg2 {[%clk 0:00:12.7]}
80... Kf2 {[%clk 0:00:12.9]} 81. Bc6 {[%clk 0:00:13]} 81... Be6 {[%clk
0:00:10.7]} 82. Ka1 {[%clk 0:00:12.9]} 82... Bc4 {[%clk 0:00:10.8]} 83. Kb2
{[%clk 0:00:13.3]} 83... Bg8 {[%clk 0:00:11.5]} 84. Ka1 {[%clk 0:00:13.5]} 84...
Bf7 {[%clk 0:00:12.2]} 85. Kb2 {[%clk 0:00:14.1]} 85... Be8 {[%clk 0:00:12.8]}
86. Bd5 {[%clk 0:00:14.1]} 86... Bd7 {[%clk 0:00:12.5]} 87. Bb7 {[%clk
0:00:14.3]} 87... Be6 {[%clk 0:00:12.4]} 88. Bc6 {[%clk 0:00:14.7]} 88... Bh3
{[%clk 0:00:12.6]} 89. Kxa2 {[%clk 0:00:14.2]} 89... Bg2 {[%clk 0:00:13.2]} 90.
Bd7 {[%clk 0:00:14.7]} 90... Be4 {[%clk 0:00:12.7]} 91. Bh3 {[%clk 0:00:14.5]}
91... Bf5 {[%clk 0:00:12.6]} 92. Bxf5 {[%clk 0:00:14.7]} 92... g2 {[%clk
0:00:13.2]} 93. Kb2 {[%clk 0:00:15.2]} 93... g1=Q {[%clk 0:00:14.1]} 94. Bc2
{[%clk 0:00:15.5]} 94... Qe1 {[%clk 0:00:15]} 95. Kb3 {[%clk 0:00:15.7]} 95...
Qe5 {[%clk 0:00:15.9]} 96. Kc4 {[%clk 0:00:16.1]} 96... Ke3 {[%clk 0:00:16.8]}
97. Ba4 {[%clk 0:00:16]} 97... Qd4+ {[%clk 0:00:17.1]} 98. Kb5 {[%clk
0:00:16.6]} 98... Kd2 {[%clk 0:00:17.7]} 99. Bb3 {[%clk 0:00:16.2]} 99... Kc3
{[%clk 0:00:18.6]} 100. Ba2 {[%clk 0:00:14.7]} 100... Qb4+ {[%clk 0:00:18.4]}
101. Kc6 {[%clk 0:00:15.1]} 101... Qa4+ {[%clk 0:00:18.2]} 0-1

[Event "Early-Titled-Tuesday-Blitz-September-12-2023"]
[Site "Chess.com"]
[Date "2023.09.12"]
[Round "4"]
[White "masterofpuppets2"]
[Black "Iunusovnuriddin"]
[Result "1/2-1/2"]
[WhiteElo "2499"]
[BlackElo "2329"]
[TimeControl "180+1"]
[EndTime "8:40:29 PDT"]
[Termination "Game drawn - insufficient material"]

1. d4 {[%clk 0:03:00.5]} 1... Nf6 {[%clk 0:02:19.5]} 2. c4 {[%clk 0:03:00.2]}
2... g6 {[%clk 0:02:19.9]} 3. f3 {[%clk 0:03:00]} 3... Bg7 {[%clk 0:02:20.7]} 4.
e4 {[%clk 0:02:59.4]} 4... d6 {[%clk 0:02:21.3]} 5. Nc3 {[%clk 0:02:59.6]} 5...
O-O {[%clk 0:02:22]} 6. Be3 {[%clk 0:03:00]} 6... c5 {[%clk 0:02:22.4]} 7. Nge2
{[%clk 0:02:59.9]} 7... b6 {[%clk 0:02:21.8]} 8. Qd2 {[%clk 0:02:54.3]} 8... Ba6
{[%clk 0:02:20.9]} 9. b3 {[%clk 0:02:49.7]} 9... e6 {[%clk 0:02:18.4]} 10. Rd1
{[%clk 0:02:42.8]} 10... Nc6 {[%clk 0:02:18]} 11. Nb5 {[%clk 0:02:34.1]} 11...
e5 {[%clk 0:02:02.4]} 12. dxc5 {[%clk 0:02:24.9]} 12... dxc5 {[%clk 0:02:00.5]}
13. Nec3 {[%clk 0:02:17.5]} 13... Nd4 {[%clk 0:01:58.7]} 14. Bd3 {[%clk
0:02:14.4]} 14... Bxb5 {[%clk 0:01:34.2]} 15. cxb5 {[%clk 0:02:08]} 15... Qe7
{[%clk 0:01:26.8]} 16. O-O {[%clk 0:02:04.2]} 16... Rfd8 {[%clk 0:01:26.8]} 17.
Qf2 {[%clk 0:01:56.1]} 17... Rd7 {[%clk 0:00:57.3]} 18. Bc4 {[%clk 0:01:46.7]}
18... Rad8 {[%clk 0:00:57.3]} 19. Kh1 {[%clk 0:01:41.4]} 19... h6 {[%clk
0:00:56.9]} 20. Rd2 {[%clk 0:01:33.1]} 20... Bf8 {[%clk 0:00:54]} 21. Rfd1
{[%clk 0:01:29.8]} 21... Rd6 {[%clk 0:00:53.5]} 22. Qg3 {[%clk 0:01:24]} 22...
Kh7 {[%clk 0:00:50.8]} 23. Qh3 {[%clk 0:01:17.2]} 23... R8d7 {[%clk 0:00:49.2]}
24. a4 {[%clk 0:01:13.1]} 24... Qd8 {[%clk 0:00:40]} 25. Bg5 {[%clk 0:00:51.9]}
25... Be7 {[%clk 0:00:11.8]} 26. Qxh6+ {[%clk 0:00:44.5]} 26... Kg8 {[%clk
0:00:10.7]} 27. Qxg6+ {[%clk 0:00:44.1]} 27... Kh8 {[%clk 0:00:11]} 28. Bxf7
{[%clk 0:00:38.2]} 28... Bf8 {[%clk 0:00:08.8]} 29. Bc4 {[%clk 0:00:20.2]} 29...
Rg7 {[%clk 0:00:07.5]} 30. Qh6+ {[%clk 0:00:15.7]} 30... Rh7 {[%clk 0:00:07.9]}
31. Qg6 {[%clk 0:00:11.7]} 31... Rg7 {[%clk 0:00:07.3]} 32. Bxf6 {[%clk
0:00:11.4]} 32... Rxf6 {[%clk 0:00:06.6]} 33. Qh5+ {[%clk 0:00:11.4]} 33... Rh7
{[%clk 0:00:07.2]} 34. Qxe5 {[%clk 0:00:11]} 34... Bd6 {[%clk 0:00:06.4]} 35.
Qd5 {[%clk 0:00:09]} 35... Rxh2+ {[%clk 0:00:05.7]} 36. Kg1 {[%clk 0:00:09.6]}
36... Rg6 {[%clk 0:00:06.1]} 37. Qf7 {[%clk 0:00:07.1]} 37... Qg5 {[%clk
0:00:04.7]} 38. Qe8+ {[%clk 0:00:03.4]} 38... Kh7 {[%clk 0:00:05.1]} 39. Qf7+
{[%clk 0:00:03.7]} 39... Rg7 {[%clk 0:00:05.2]} 40. Qd5 {[%clk 0:00:02.4]} 40...
Rxg2+ {[%clk 0:00:05.2]} 41. Kf1 {[%clk 0:00:02.4]} 41... Rg1+ {[%clk
0:00:05.4]} 42. Kf2 {[%clk 0:00:03]} 42... Qg2+ {[%clk 0:00:05.5]} 43. Ke3
{[%clk 0:00:03.7]} 43... Qg5+ {[%clk 0:00:05.3]} 44. Qxg5 {[%clk 0:00:03.5]}
44... R1xg5 {[%clk 0:00:02.7]} 45. Rh2+ {[%clk 0:00:03.3]} 45... Kg6 {[%clk
0:00:02.4]} 46. Re1 {[%clk 0:00:03.2]} 46... Bxh2 {[%clk 0:00:02.2]} 47. Rd1
{[%clk 0:00:04.1]} 47... Bf4+ {[%clk 0:00:02.3]} 48. Kxf4 {[%clk 0:00:04.3]}
48... Kf6 {[%clk 0:00:03.2]} 49. Nd5+ {[%clk 0:00:03.8]} 49... Kg6 {[%clk
0:00:03.1]} 50. Rh1 {[%clk 0:00:03.6]} 50... Rh5 {[%clk 0:00:01.9]} 51. Rg1+
{[%clk 0:00:03.6]} 51... Kh6 {[%clk 0:00:02]} 52. Rd1 {[%clk 0:00:04.5]} 52...
Rg2 {[%clk 0:00:02]} 53. Ne7 {[%clk 0:00:04.2]} 53... Rh3 {[%clk 0:00:02.7]} 54.
Nf5+ {[%clk 0:00:02.8]} 54... Nxf5 {[%clk 0:00:03.4]} 55. Kxf5 {[%clk
0:00:03.3]} 55... Rgg3 {[%clk 0:00:04.2]} 56. f4 {[%clk 0:00:03]} 56... Rxb3
{[%clk 0:00:04.1]} 57. e5 {[%clk 0:00:03.6]} 57... Rb4 {[%clk 0:00:03.6]} 58.
Rd6+ {[%clk 0:00:04.5]} 58... Kg7 {[%clk 0:00:03.5]} 59. Bd5 {[%clk 0:00:04.7]}
59... Rf3 {[%clk 0:00:04.1]} 60. Ke6 {[%clk 0:00:04.4]} 60... Rfxf4 {[%clk
0:00:04]} 61. Rd7+ {[%clk 0:00:05.1]} 61... Kg6 {[%clk 0:00:03.6]} 62. Kd6
{[%clk 0:00:05.6]} 62... Rbd4 {[%clk 0:00:03.5]} 63. e6 {[%clk 0:00:06.2]} 63...
Rf6 {[%clk 0:00:03.4]} 64. Ke5 {[%clk 0:00:06.2]} 64... Rd1 {[%clk 0:00:02.5]}
65. e7 {[%clk 0:00:06.1]} 65... Re1+ {[%clk 0:00:02.9]} 66. Be4+ {[%clk
0:00:06.5]} 66... Rxe4+ {[%clk 0:00:01.9]} 67. Kxe4 {[%clk 0:00:06.9]} 67...
Re6+ {[%clk 0:00:02.8]} 68. Kd5 {[%clk 0:00:07.2]} 68... Re1 {[%clk 0:00:02.4]}
69. Kd6 {[%clk 0:00:06.7]} 69... Kf7 {[%clk 0:00:02.9]} 70. Rxa7 {[%clk
0:00:05.3]} 70... Rxe7 {[%clk 0:00:03.3]} 71. Ra6 {[%clk 0:00:04.9]} 71... Re6+
{[%clk 0:00:03.2]} 72. Kc7 {[%clk 0:00:04.3]} 72... Ke7 {[%clk 0:00:03]} 73.
Rxb6 {[%clk 0:00:04.4]} 73... Rxb6 {[%clk 0:00:02.4]} 74. Kxb6 {[%clk
0:00:05.3]} 74... c4 {[%clk 0:00:03.3]} 75. a5 {[%clk 0:00:05.4]} 75... c3
{[%clk 0:00:04.2]} 76. a6 {[%clk 0:00:05.8]} 76... c2 {[%clk 0:00:05.1]} 77. a7
{[%clk 0:00:06.4]} 77... c1=Q {[%clk 0:00:05.9]} 78. a8=Q {[%clk 0:00:06.9]}
78... Qg1+ {[%clk 0:00:05.8]} 79. Ka6 {[%clk 0:00:06.3]} 79... Qa1+ {[%clk
0:00:05.9]} 80. Kb7 {[%clk 0:00:06.8]} 80... Qh1+ {[%clk 0:00:06.6]} 81. Kb8
{[%clk 0:00:06.9]} 81... Qh8+ {[%clk 0:00:06.8]} 82. Ka7 {[%clk 0:00:06.7]}
82... Qa1+ {[%clk 0:00:07]} 83. Kb7 {[%clk 0:00:05.3]} 83... Qh1+ {[%clk
0:00:06.9]} 84. Kb8 {[%clk 0:00:05.3]} 84... Qh2+ {[%clk 0:00:07.5]} 85. Ka7
{[%clk 0:00:03.9]} 85... Qa2+ {[%clk 0:00:08]} 86. Kb7 {[%clk 0:00:03.7]} 86...
Qd5+ {[%clk 0:00:08]} 87. Ka7 {[%clk 0:00:02.5]} 87... Qxb5 {[%clk 0:00:07.5]}
88. Qb7+ {[%clk 0:00:02.7]} 88... Qxb7+ {[%clk 0:00:08]} 89. Kxb7 {[%clk
0:00:03.6]} 1/2-1/2

[Event "Early-Titled-Tuesday-Blitz-September-12-2023"]
[Site "Chess.com"]
[Date "2023.09.12"]
[Round "5"]
[White "Good_Knight_Kiss"]
[Black "APOKALIPSA13"]
[Result "0-1"]
[WhiteElo "2395"]
[BlackElo "2255"]
[TimeControl "180+1"]
[EndTime "8:50:48 PDT"]
[Termination "APOKALIPSA13 won by resignation"]

1. e4 {[%clk 0:03:00.9]} 1... e5 {[%clk 0:02:57.9]} 2. Nf3 {[%clk 0:02:58.9]}
2... d5 {[%clk 0:02:58.8]} 3. exd5 {[%clk 0:02:58.7]} 3... e4 {[%clk 0:02:59.7]}
4. Qe2 {[%clk 0:02:57.3]} 4... Nf6 {[%clk 0:03:00.6]} 5. Nc3 {[%clk 0:02:56]}
5... Be7 {[%clk 0:02:58.2]} 6. Nxe4 {[%clk 0:02:55.7]} 6... O-O {[%clk
0:02:58.7]} 7. Nxf6+ {[%clk 0:02:55.9]} 7... Bxf6 {[%clk 0:02:59.6]} 8. d4
{[%clk 0:02:53.5]} 8... Qxd5 {[%clk 0:02:58.1]} 9. Be3 {[%clk 0:02:50.4]} 9...
Bg4 {[%clk 0:02:56.3]} 10. h3 {[%clk 0:02:41]} 10... Bh5 {[%clk 0:02:54.2]} 11.
g4 {[%clk 0:02:40.5]} 11... Bg6 {[%clk 0:02:54.3]} 12. Bg2 {[%clk 0:02:33.6]}
12... Re8 {[%clk 0:02:53]} 13. O-O {[%clk 0:02:23]} 13... Nc6 {[%clk 0:02:50]}
14. Ne5 {[%clk 0:01:57.9]} 14... Nxd4 {[%clk 0:02:47.4]} 15. Bxd4 {[%clk
0:01:08]} 15... Qxd4 {[%clk 0:02:48.3]} 16. Nf3 {[%clk 0:00:56]} 16... Rxe2
{[%clk 0:02:44.1]} 0-1

[Event "Early-Titled-Tuesday-Blitz-September-12-2023"]
[Site "Chess.com"]
[Date "2023.09.12"]
[Round "5"]
[White "Djager97"]
[Black "temus_galaktionov"]
[Result "0-1"]
[WhiteElo "2550"]
[BlackElo "2820"]
[TimeControl "180+1"]
[EndTime "8:50:49 PDT"]
[Termination "temus_galaktionov won by resignation"]

1. e4 {[%clk 0:02:54.7]} 1... c6 {[%clk 0:03:00.9]} 2. d4 {[%clk 0:02:54.6]}
2... g6 {[%clk 0:03:01.5]} 3. Nc3 {[%clk 0:02:53.1]} 3... d6 {[%clk 0:03:02.4]}
4. f4 {[%clk 0:02:53.2]} 4... Bg7 {[%clk 0:03:03]} 5. Nf3 {[%clk 0:02:53.8]}
5... Nd7 {[%clk 0:03:03.2]} 6. Bd3 {[%clk 0:02:54.2]} 6... e5 {[%clk 0:03:03.8]}
7. dxe5 {[%clk 0:02:44.9]} 7... dxe5 {[%clk 0:03:04.7]} 8. f5 {[%clk 0:02:45.3]}
8... Ngf6 {[%clk 0:03:04.6]} 9. O-O {[%clk 0:02:44.6]} 9... O-O {[%clk
0:03:03.7]} 10. Kh1 {[%clk 0:02:40.5]} 10... Nc5 {[%clk 0:03:02.9]} 11. Nxe5
{[%clk 0:02:33.3]} 11... Re8 {[%clk 0:02:54.5]} 12. Nxf7 {[%clk 0:01:40.1]}
12... Kxf7 {[%clk 0:02:48.8]} 13. e5 {[%clk 0:01:26.2]} 13... Nxd3 {[%clk
0:02:36.3]} 14. exf6 {[%clk 0:01:15.6]} 14... Nf2+ {[%clk 0:02:34]} 0-1

[Event "Early-Titled-Tuesday-Blitz-September-12-2023"]
[Site "Chess.com"]
[Date "2023.09.12"]
[Round "5"]
[White "JiaHaoxiang"]
[Black "HrvojeZagreb"]
[Result "1-0"]
[WhiteElo "2600"]
[BlackElo "2275"]
[TimeControl "180+1"]
[EndTime "8:51:10 PDT"]
[Termination "JiaHaoxiang won by checkmate"]

1. d4 {[%clk 0:02:47.4]} 1... e6 {[%clk 0:03:00.1]} 2. Nf3 {[%clk 0:02:46.6]}
2... f5 {[%clk 0:03:00.3]} 3. Bf4 {[%clk 0:02:44.5]} 3... Nf6 {[%clk 0:02:59.4]}
4. e3 {[%clk 0:02:44.2]} 4... d6 {[%clk 0:02:59.3]} 5. Nbd2 {[%clk 0:02:41.9]}
5... Be7 {[%clk 0:02:58.2]} 6. h3 {[%clk 0:02:42.5]} 6... O-O {[%clk 0:02:19.3]}
7. g4 {[%clk 0:02:39.3]} 7... Nc6 {[%clk 0:02:06.8]} 8. c3 {[%clk 0:02:34.5]}
8... e5 {[%clk 0:02:02.7]} 9. dxe5 {[%clk 0:02:27]} 9... dxe5 {[%clk 0:02:02.7]}
10. Nxe5 {[%clk 0:02:26]} 10... Nxe5 {[%clk 0:01:51.1]} 11. Bxe5 {[%clk
0:02:26.9]} 11... Qd5 {[%clk 0:01:45.3]} 12. Bc4 {[%clk 0:02:26.1]} 12... Qxc4
{[%clk 0:01:37.4]} 13. Nxc4 {[%clk 0:02:26.1]} 13... fxg4 {[%clk 0:01:38.3]} 14.
hxg4 {[%clk 0:02:21.9]} 14... Bxg4 {[%clk 0:01:38.2]} 15. Qb3 {[%clk 0:02:19.5]}
15... Kh8 {[%clk 0:01:35.7]} 16. Bg3 {[%clk 0:02:11.6]} 16... Ne4 {[%clk
0:01:24.6]} 17. Ne5 {[%clk 0:02:09.5]} 17... Nxg3 {[%clk 0:01:16]} 18. Ng6#
{[%clk 0:02:05.7]} 1-0

[Event "Early-Titled-Tuesday-Blitz-September-12-2023"]
[Site "Chess.com"]
[Date "2023.09.12"]
[Round "5"]
[White "Frolyanov_D"]
[Black "platy3"]
[Result "1-0"]
[WhiteElo "2656"]
[BlackElo "2896"]
[TimeControl "180+1"]
[EndTime "8:51:25 PDT"]
[Termination "Frolyanov_D won by resignation"]

1. d4 {[%clk 0:03:00.9]} 1... Nf6 {[%clk 0:02:57.5]} 2. c4 {[%clk 0:03:00.7]}
2... e6 {[%clk 0:02:57.8]} 3. Nf3 {[%clk 0:03:00.6]} 3... Bb4+ {[%clk 0:02:57]}
4. Nbd2 {[%clk 0:03:00]} 4... O-O {[%clk 0:02:56.4]} 5. g3 {[%clk 0:02:59.8]}
5... b6 {[%clk 0:02:54.6]} 6. Bg2 {[%clk 0:02:59.3]} 6... Bb7 {[%clk 0:02:54.8]}
7. O-O {[%clk 0:02:58.7]} 7... Be7 {[%clk 0:02:55]} 8. Qc2 {[%clk 0:02:55.2]}
8... c5 {[%clk 0:02:51]} 9. dxc5 {[%clk 0:02:42]} 9... bxc5 {[%clk 0:02:51.9]}
10. b3 {[%clk 0:02:40.7]} 10... a5 {[%clk 0:02:51.1]} 11. Bb2 {[%clk 0:02:40.2]}
11... d6 {[%clk 0:02:50.8]} 12. Ng5 {[%clk 0:02:15.8]} 12... Bxg2 {[%clk
0:02:38.2]} 13. Bxf6 {[%clk 0:02:13.5]} 13... g6 {[%clk 0:02:37.5]} 14. Nxf7
{[%clk 0:01:50.8]} 14... Rxf7 {[%clk 0:02:25.2]} 15. Bxe7 {[%clk 0:01:50.9]}
15... Qxe7 {[%clk 0:02:25.1]} 16. Kxg2 {[%clk 0:01:50.6]} 16... Nc6 {[%clk
0:02:25.8]} 17. Qe4 {[%clk 0:01:45.8]} 17... Rc8 {[%clk 0:02:23]} 18. Nf3 {[%clk
0:01:44.6]} 18... Rff8 {[%clk 0:02:12.6]} 19. h4 {[%clk 0:01:41.8]} 19... Qf6
{[%clk 0:02:09.4]} 20. Rad1 {[%clk 0:01:40]} 20... Rfd8 {[%clk 0:02:07.2]} 21.
Ng5 {[%clk 0:01:31.2]} 21... e5 {[%clk 0:02:01.8]} 22. Qd5+ {[%clk 0:01:25.6]}
1-0

[Event "Early-Titled-Tuesday-Blitz-September-12-2023"]
[Site "Chess.com"]
[Date "2023.09.12"]
[Round "5"]
[White "Triumphmate"]
[Black "CFalcons8"]
[Result "1-0"]
[WhiteElo "2510"]
[BlackElo "2305"]
[TimeControl "180+1"]
[EndTime "8:51:29 PDT"]
[Termination "Triumphmate won by resignation"]

1. e4 {[%clk 0:03:00.9]} 1... e5 {[%clk 0:02:47.6]} 2. Nf3 {[%clk 0:03:00.8]}
2... Nc6 {[%clk 0:02:46.7]} 3. Nc3 {[%clk 0:03:01.7]} 3... Nf6 {[%clk
0:02:44.9]} 4. Bb5 {[%clk 0:03:02.2]} 4... a6 {[%clk 0:02:43]} 5. Bxc6 {[%clk
0:03:01.7]} 5... dxc6 {[%clk 0:02:43]} 6. Nxe5 {[%clk 0:03:02.4]} 6... Nxe4
{[%clk 0:02:29.2]} 7. Nxe4 {[%clk 0:03:03.3]} 7... Qd4 {[%clk 0:02:28.5]} 8. O-O
{[%clk 0:03:03.6]} 8... Qxe5 {[%clk 0:02:24.6]} 9. Re1 {[%clk 0:03:04.1]} 9...
Be7 {[%clk 0:02:24.1]} 10. d4 {[%clk 0:02:59.9]} 10... Qd5 {[%clk 0:02:19]} 11.
Bg5 {[%clk 0:02:54.8]} 11... Be6 {[%clk 0:02:09]} 12. Bxe7 {[%clk 0:02:41.2]}
12... Kxe7 {[%clk 0:02:09.9]} 13. Nc5 {[%clk 0:02:31.4]} 13... b6 {[%clk
0:01:58.3]} 14. Nxe6 {[%clk 0:02:28.7]} 14... fxe6 {[%clk 0:01:59.2]} 15. Qg4
{[%clk 0:02:09.1]} 15... g6 {[%clk 0:01:57.9]} 16. Re5 {[%clk 0:02:08]} 16...
Qd6 {[%clk 0:01:50.1]} 17. Rae1 {[%clk 0:02:06.7]} 17... Kd8 {[%clk 0:01:49.1]}
18. Rxe6 {[%clk 0:02:04.2]} 18... Qd7 {[%clk 0:01:47.9]} 19. Qe4 {[%clk
0:01:42.7]} 19... Qd5 {[%clk 0:01:34.7]} 20. Re8+ {[%clk 0:01:40.7]} 1-0

[Event "Early-Titled-Tuesday-Blitz-September-12-2023"]
[Site "Chess.com"]
[Date "2023.09.12"]
[Round "5"]
[White "the_chess_child"]
[Black "LoaySameer"]
[Result "1-0"]
[WhiteElo "2902"]
[BlackElo "2521"]
[TimeControl "180+1"]
[EndTime "8:51:35 PDT"]
[Termination "the_chess_child won by resignation"]

1. e4 {[%clk 0:03:00.9]} 1... g6 {[%clk 0:02:53.8]} 2. d4 {[%clk 0:02:58.9]}
2... Bg7 {[%clk 0:02:53.7]} 3. Nc3 {[%clk 0:02:58.9]} 3... d6 {[%clk 0:02:53.1]}
4. Bg5 {[%clk 0:02:58.5]} 4... c5 {[%clk 0:02:53.2]} 5. dxc5 {[%clk 0:02:54.6]}
5... Bxc3+ {[%clk 0:02:52.6]} 6. bxc3 {[%clk 0:02:54.5]} 6... Qa5 {[%clk
0:02:53.3]} 7. Qd4 {[%clk 0:02:43.1]} 7... e5 {[%clk 0:02:44.4]} 8. Qxd6 {[%clk
0:02:14]} 8... Qxc3+ {[%clk 0:02:12.2]} 9. Ke2 {[%clk 0:02:14.2]} 9... Qxc2+
{[%clk 0:02:09]} 10. Kf3 {[%clk 0:02:14.2]} 10... Qc3+ {[%clk 0:02:02.8]} 11.
Bd3 {[%clk 0:02:12.6]} 11... Nc6 {[%clk 0:01:59.2]} 12. Ne2 {[%clk 0:02:04.4]}
12... Qa5 {[%clk 0:01:51.3]} 13. Rhd1 {[%clk 0:02:01.4]} 13... f6 {[%clk
0:01:45.6]} 14. Bd2 {[%clk 0:01:34.9]} 14... Qd8 {[%clk 0:01:42.2]} 15. Bc4
{[%clk 0:01:31.2]} 15... Nh6 {[%clk 0:01:35]} 16. Bxh6 {[%clk 0:01:30.5]} 1-0